[Event "FRA-ch Open A-D 2018"]
[Site "Nimes"]
[Date "2018.08.25"]
[Round "8"]
[White "Destic, Pablo"]
[Black "Sabatier, Mathis"]
[Result "1/2-1/2"]
[ECO "C84"]
[WhiteElo "1921"]
[BlackElo "1904"]
[Annotator "NA RC"]
[PlyCount "111"]
[EventDate "2018.08.18"]
[EventType "tourn"]
[EventCountry "FRA"]
[SourceTitle "playchess.com"]
[Source "ChessBase"]
[SourceQuality "1"]
[TimeControl "40/5400+30:1800+30"]

1. e4 {[%emt 0:00:00]} e5 {[%emt 0:00:00]} 2. Nf3 {[%emt 0:00:00]} Nc6 {[%emt 0:00:00]} 3. Bb5 {[%emt 0:00:02]} a6 {[%emt 0:00:33]} 4. Ba4 {[%emt 0:00:05]} Nf6 {[%emt 0:00:04]} 5. O-O {[%emt 0:01:22]} Be7 {[%emt 0:00:13]} 6. d3 {[%emt 0:00:19]} b5 {[%emt 0:00:44]} 7. Bb3 {[%emt 0:00:05]} d6 {[%emt 0:00:25]} 8. c3 {[%emt 0:01:09]} O-O {[%emt 0:00:29]} 9. h3 {[%emt 0:02:01]} Na5 {[%emt 0:01:43]} 10. Bc2 {[%emt 0:01:03]} c5 {[%emt 0:00:52]} 11. d4 {[%emt 0:02:35]} Nd7 {[%emt 0:02:12]} 12. Nbd2 {[%emt 0:07:39]} exd4 {[%emt 0:00:46]} 13. cxd4 {[%emt 0:00:06]} Nc6 {[%emt 0:00:54]} 14. a4 {[%emt 0:03:49]} Bb7 {[%emt 0:05:31]} 15. d5 {[%emt 0:01:47]} Nce5 {[%emt 0:00:16]} 16. Nxe5 {[%emt 0:00:25]} Nxe5 {[%emt 0:00:17]} 17. f4 {[%emt 0:04:45]} Ng6 {[%emt 0:03:36]} 18. Nf3 {[%emt 0:02:36]} b4 {[%emt 0:12:22]} 19. b3 {[%emt 0:02:14]} a5 {[%emt 0:07:34]} 20. Bd3 {[%emt 0:03:16]} Bf6 {[%emt 0:10:30]} 21. Ra2 {[%emt 0:02:52]} Ba6 {[%emt 0:01:57]} 22. Bxa6 {[%emt 0:02:45]} Rxa6 {[%emt 0:00:02]} 23. Qd3 {[%emt 0:00:20]} Ra7 {[%emt 0:03:49]} 24. Nd2 {[%emt 0:13:47]} Re8 {[%emt 0:05:04]} 25. Bb2 {[%emt 0:07:28]} Bxb2 {[%emt 0:02:36]} 26. Rxb2 {[%emt 0:00:06]} Rae7 {[%emt 0:07:18]} 27. Rbb1 {[%emt 0:05:31]} Qd7 {[%emt 0:08:44]} 28. Rbe1 {[%emt 0:03:51]} f5 {[%emt 0:04:09]} 29. Qc4 {[%emt 0:02:22]} fxe4 {[%emt 0:06:29]} 30. Rxe4 {[%emt 0:06:49]} Rxe4 {[%emt 0:01:25]} 31. Nxe4 {[%emt 0:00:10]} Qe7 {[%emt 0:04:18]} 32. Re1 {[%emt 0:06:20]} Kh8 {[%emt 0:01:04]} 33. g3 {[%emt 0:00:40]} Nf8 {[%emt 0:04:00]} 34. Re2 {[%emt 0:03:12]} Nd7 {[%emt 0:01:52]} 35. Kf2 {[%emt 0:02:11]} Qf8 {[%emt 0:02:24]} 36. Qb5 {[%emt 0:05:07]} Nf6 {[%emt 0:01:00]} 37. Nxf6 {[%emt 0:01:10]} Rxe2+ {[%emt 0:00:06]} 38. Kxe2 {[%emt 0:03:18]} gxf6 {[%emt 0:00:18]} 39. Qd7 {[%emt 0:02:34]} Kg8 {[%emt 0:01:11]} 40. Kd3 {[%emt 0:00:50]} Qb8 {[%emt 0:01:50]} 41. Qe7 {[%emt 0:32:02]} Qb6 {[%emt 0:02:45]} 42. Qe8+ {[%emt 0:00:00]} Kg7 {[%emt 0:00:21]} 43. Qc6 {[%emt 0:00:00]} Qd8 {[%emt 0:02:43]} 44. Ke4 {[%emt 0:00:00]} Qe7+ {[%emt 0:03:41]} 45. Kf5 {[%emt 0:00:00]} Qf7 {[%emt 0:01:39]} 46. g4 {[%emt 0:00:00]} h6 {[%emt 0:05:46]} 47. h4 {[%emt 0:00:00]} Qe7 {[%emt 0:06:37]} 48. h5 {[%emt 0:00:00]} Kf7 {[%emt 0:01:41]} 49. Qc8 {[%emt 0:00:00]} Kg7 {[%emt 0:05:57]} 50. Qa8 {[%emt 0:01:17]} Qd7+ {[%emt 0:00:58]} 51. Ke4 {[%emt 0:00:06]} Qxg4 {[%emt 0:00:43]} 52. Qb7+ {[%emt 0:00:58]} Kf8 {[%emt 0:00:23]} 53. Qb8+ {[%emt 0:00:46]} Ke7 {[%emt 0:00:34]} 54. Qc7+ {[%emt 0:00:10]} Qd7 {[%emt 0:00:39]} 55. Qxd7+ {[%emt 0:00:04]} Kxd7 {[%emt 0:00:04]} 56. Kd3 {[%emt 0:00:09]} 1/2-1/2

[Event "FRA-ch Open A-D 2018"]
[Site "Nimes"]
[Date "2018.08.25"]
[Round "8"]
[White "Verhille, Elie"]
[Black "Grundman, Anatole"]
[Result "0-1"]
[ECO "B52"]
[WhiteElo "1862"]
[BlackElo "1928"]
[Annotator "NA RC"]
[PlyCount "108"]
[EventDate "2018.08.18"]
[EventType "tourn"]
[EventCountry "FRA"]
[SourceTitle "playchess.com"]
[Source "ChessBase"]
[SourceQuality "1"]
[TimeControl "40/5400+30:1800+30"]

1. e4 {[%emt 0:00:18]} c5 {[%emt 0:00:00]} 2. Nf3 {[%emt 0:00:07]} d6 {[%emt 0:00:00]} 3. Bb5+ {[%emt 0:00:08]} Bd7 {[%emt 0:00:08]} 4. Bxd7+ {[%emt 0:00:06]} Qxd7 {[%emt 0:00:06]} 5. O-O {[%emt 0:00:06]} Nc6 {[%emt 0:00:17]} 6. c3 {[%emt 0:00:12]} Nf6 {[%emt 0:00:14]} 7. Re1 {[%emt 0:00:07]} e6 {[%emt 0:00:13]} 8. d4 {[%emt 0:00:30]} cxd4 {[%emt 0:00:06]} 9. cxd4 {[%emt 0:00:05]} d5 {[%emt 0:00:10]} 10. e5 {[%emt 0:00:06]} Ne4 {[%emt 0:00:11]} 11. Nbd2 {[%emt 0:00:11]} Nxd2 {[%emt 0:00:06]} 12. Bxd2 {[%emt 0:00:08]} Be7 {[%emt 0:00:34]} 13. Rc1 {[%emt 0:01:21]} O-O {[%emt 0:01:39]} 14. a3 {[%emt 0:02:13]} Qd8 {[%emt 0:02:08]} 15. Rc3 {[%emt 0:04:38]} Na5 {[%emt 0:04:13]} 16. Be3 {[%emt 0:07:20]} b5 {[%emt 0:13:37]} 17. Nd2 {[%emt 0:12:56]} b4 {[%emt 0:22:52]} 18. axb4 {[%emt 0:03:25]} Bxb4 {[%emt 0:00:29]} 19. Rc2 {[%emt 0:07:53]} Qd7 {[%emt 0:10:55]} 20. Rf1 {[%emt 0:09:13]} Rfc8 {[%emt 0:01:46]} 21. f4 {[%emt 0:04:32]} Qb5 {[%emt 0:04:36]} 22. Nf3 {[%emt 0:07:22]} Nc4 {[%emt 0:01:00]} 23. Bc1 {[%emt 0:01:17]} Nb6 {[%emt 0:04:24]} 24. g4 {[%emt 0:04:31]} Rxc2 {[%emt 0:01:59]} 25. Qxc2 {[%emt 0:01:30]} Rc8 {[%emt 0:00:21]} 26. Qf2 {[%emt 0:04:02]} Qd3 {[%emt 0:04:43]} 27. f5 {[%emt 0:13:11]} Rc2 {[%emt 0:07:51]} 28. Qh4 {[%emt 0:02:22]} Rxc1 {[%emt 0:07:54]} 29. Rxc1 {[%emt 0:02:18]} Qe3+ {[%emt 0:00:10]} 30. Kg2 {[%emt 0:01:18]} Qxc1 {[%emt 0:00:35]} 31. fxe6 {[%emt 0:02:48]} fxe6 {[%emt 0:03:22]} 32. Qd8+ {[%emt 0:03:18]} Bf8 {[%emt 0:00:22]} 33. Qe8 {[%emt 0:02:45]} Qc8 {[%emt 0:02:26]} 34. Qxc8 {[%emt 0:03:57]} Nxc8 {[%emt 0:00:06]} 35. Ng5 {[%emt 0:00:05]} Be7 {[%emt 0:03:45]} 36. Nxe6 {[%emt 0:00:02]} Nb6 {[%emt 0:01:16]} 37. Nf4 {[%emt 0:00:34]} Kf7 {[%emt 0:01:21]} 38. Kf3 {[%emt 0:00:27]} g5 {[%emt 0:01:14]} 39. Nd3 {[%emt 0:00:44]} Ke6 {[%emt 0:00:47]} 40. Ke2 {[%emt 0:01:22]} a5 {[%emt 0:00:58]} 41. b3 {[%emt 0:02:04]} a4 {[%emt 0:11:58]} 42. bxa4 {[%emt 0:00:14]} Nxa4 {[%emt 0:00:04]} 43. h4 {[%emt 0:02:25]} Nc3+ {[%emt 0:01:50]} 44. Kf3 {[%emt 0:04:15]} gxh4 45. Kf4 {[%emt 0:02:56]} Ne4 {[%emt 0:06:28]} 46. Kf3 {[%emt 0:01:40]} Bg5 {[%emt 0:02:32]} 47. Ne1 {[%emt 0:04:44]} Nd2+ {[%emt 0:04:43]} 48. Kg2 {[%emt 0:01:27]} Nb3 {[%emt 0:01:45]} 49. Nf3 {[%emt 0:00:41]} Be3 {[%emt 0:01:16]} 50. Kh3 {[%emt 0:01:14]} Nxd4 {[%emt 0:01:05]} 51. Nxh4 {[%emt 0:00:38]} Kxe5 {[%emt 0:00:48]} 52. Kg3 {[%emt 0:00:50]} Bg5 {[%emt 0:01:27]} 53. Ng2 {[%emt 0:00:10]} Ke4 {[%emt 0:01:03]} 54. Ne1 {[%emt 0:00:40]} Bh4+ {[%emt 0:01:26]} 0-1

[Event "FRA-ch Open A-D 2018"]
[Site "Nimes"]
[Date "2018.08.25"]
[Round "8"]
[White "Radoman, Emmanuel"]
[Black "Brouard, Gregoire"]
[Result "1-0"]
[ECO "C06"]
[WhiteElo "1818"]
[BlackElo "1898"]
[Annotator "NA RC"]
[PlyCount "117"]
[EventDate "2018.08.18"]
[EventType "tourn"]
[EventCountry "FRA"]
[SourceTitle "playchess.com"]
[Source "ChessBase"]
[SourceQuality "1"]
[TimeControl "40/5400+30:1800+30"]

1. e4 {[%emt 0:00:00]} e6 {[%emt 0:00:00]} 2. d4 {[%emt 0:00:55]} d5 {[%emt 0:00:00]} 3. Nd2 {[%emt 0:00:04]} Nf6 {[%emt 0:00:00]} 4. e5 {[%emt 0:00:03]} Nfd7 {[%emt 0:00:00]} 5. Bd3 {[%emt 0:00:06]} c5 {[%emt 0:00:04]} 6. c3 {[%emt 0:00:02]} Nc6 {[%emt 0:00:05]} 7. Ne2 {[%emt 0:00:04]} cxd4 {[%emt 0:00:05]} 8. cxd4 {[%emt 0:00:02]} f6 {[%emt 0:00:07]} 9. exf6 {[%emt 0:00:03]} Nxf6 {[%emt 0:00:07]} 10. O-O {[%emt 0:00:09]} Bd6 {[%emt 0:00:07]} 11. Nf3 {[%emt 0:00:02]} O-O {[%emt 0:00:20]} 12. Bf4 {[%emt 0:00:17]} Nh5 {[%emt 0:00:43]} 13. Bxd6 {[%emt 0:00:59]} Qxd6 {[%emt 0:00:06]} 14. Qc1 {[%emt 0:03:14]} Bd7 {[%emt 0:11:01]} 15. Qg5 {[%emt 0:00:30]} Be8 {[%emt 0:02:58]} 16. Rac1 {[%emt 0:10:43]} Nf4 {[%emt 0:05:22]} 17. Nxf4 {[%emt 0:17:20]} Qxf4 {[%emt 0:01:50]} 18. Rfd1 {[%emt 0:06:10]} h6 {[%emt 0:02:22]} 19. Qxf4 {[%emt 0:01:26]} Rxf4 {[%emt 0:00:05]} 20. Bb5 {[%emt 0:03:53]} Na5 {[%emt 0:26:12]} 21. Bxe8 {[%emt 0:02:28]} Rxe8 {[%emt 0:00:07]} 22. Ne5 {[%emt 0:10:36]} b5 {[%emt 0:04:37]} 23. b3 {[%emt 0:07:00]} a6 {[%emt 0:14:26]} 24. Rc7 {[%emt 0:02:59]} Rff8 {[%emt 0:01:54]} 25. g3 {[%emt 0:02:43]} Rb8 {[%emt 0:04:01]} 26. Rdc1 {[%emt 0:07:33]} Ra8 {[%emt 0:06:27]} 27. Re7 {[%emt 0:06:35]} Rfc8 {[%emt 0:01:05]} 28. Rxc8+ {[%emt 0:00:26]} Rxc8 {[%emt 0:00:05]} 29. Rxe6 {[%emt 0:00:06]} Rc2 {[%emt 0:00:08]} 30. Rxa6 {[%emt 0:00:54]} Rxa2 {[%emt 0:00:07]} 31. b4 {[%emt 0:05:34]} Ra1+ {[%emt 0:00:07]} 32. Kg2 {[%emt 0:00:02]} Nb3 {[%emt 0:00:08]} 33. Rd6 {[%emt 0:07:54]} Nxd4 {[%emt 0:07:16]} 34. Rxd5 {[%emt 0:00:17]} Nc2 {[%emt 0:00:14]} 35. Rxb5 {[%emt 0:01:08]} Rb1 {[%emt 0:01:08]} 36. Rb8+ {[%emt 0:00:26]} Kh7 {[%emt 0:00:06]} 37. b5 {[%emt 0:00:57]} Na3 {[%emt 0:01:17]} 38. b6 {[%emt 0:00:33]} Rb3 {[%emt 0:01:34]} 39. b7 {[%emt 0:01:11]} Rb5 {[%emt 0:03:49]} 40. Nf7 {[%emt 0:03:11]} Nc4 {[%emt 0:02:25]} 41. Rh8+ {[%emt 0:04:51]} Kg6 {[%emt 0:00:21]} 42. b8=Q {[%emt 0:05:23]} Rxb8 {[%emt 0:00:18]} 43. Rxb8 {[%emt 0:00:09]} Kxf7 {[%emt 0:00:09]} 44. h4 {[%emt 0:01:56]} Ne5 {[%emt 0:00:22]} 45. Rb5 {[%emt 0:00:30]} Ng4 {[%emt 0:00:23]} 46. Kf3 {[%emt 0:01:21]} Nf6 {[%emt 0:00:16]} 47. g4 {[%emt 0:02:17]} Ng8 {[%emt 0:01:15]} 48. Kf4 {[%emt 0:00:27]} Ne7 {[%emt 0:00:32]} 49. Rb7 {[%emt 0:07:57]} Kf6 {[%emt 0:01:29]} 50. Rxe7 {[%emt 0:03:51]} Kxe7 {[%emt 0:00:08]} 51. Kf5 {[%emt 0:00:01]} Kf7 {[%emt 0:01:18]} 52. h5 {[%emt 0:00:15]} Kg8 {[%emt 0:00:35]} 53. Kg6 {[%emt 0:00:03]} Kh8 {[%emt 0:00:12]} 54. f4 {[%emt 0:00:04]} Kg8 {[%emt 0:00:07]} 55. g5 {[%emt 0:06:43]} hxg5 {[%emt 0:00:42]} 56. fxg5 {[%emt 0:00:17]} Kh8 {[%emt 0:00:05]} 57. Kf7 {[%emt 0:01:46]} Kh7 {[%emt 0:00:51]} 58. g6+ {[%emt 0:00:06]} Kh8 {[%emt 0:00:53]} 59. h6 {[%emt 0:00:06]} 1-0

[Event "FRA-ch Open A-D 2018"]
[Site "Nimes"]
[Date "2018.08.25"]
[Round "8"]
[White "Dimey, Cyrille"]
[Black "Verin, Jules"]
[Result "1-0"]
[ECO "A41"]
[WhiteElo "1807"]
[BlackElo "1941"]
[Annotator "NA RC"]
[PlyCount "67"]
[EventDate "2018.08.18"]
[EventType "tourn"]
[EventCountry "FRA"]
[SourceTitle "playchess.com"]
[Source "ChessBase"]
[SourceQuality "1"]
[TimeControl "40/5400+30:1800+30"]

1. d4 {[%emt 0:00:00]} g6 {[%emt 0:00:00]} 2. c4 {[%emt 0:00:00]} Bg7 {[%emt 0:00:00]} 3. Nc3 {[%emt 0:00:00]} d6 {[%emt 0:00:00]} 4. Nf3 {[%emt 0:00:00]} Nd7 {[%emt 0:00:00]} 5. Bg5 {[%emt 0:00:38]} Ngf6 {[%emt 0:05:03]} 6. e3 {[%emt 0:00:14]} h6 {[%emt 0:02:22]} 7. Bh4 {[%emt 0:00:39]} O-O {[%emt 0:04:19]} 8. Be2 {[%emt 0:00:37]} c5 {[%emt 0:05:46]} 9. d5 {[%emt 0:00:27]} Ne5 {[%emt 0:02:14]} 10. Nd2 {[%emt 0:03:32]} a6 {[%emt 0:06:35]} 11. a4 {[%emt 0:04:08]} g5 {[%emt 0:09:31]} 12. Bg3 {[%emt 0:00:51]} Bf5 {[%emt 0:01:01]} 13. Bxe5 {[%emt 0:14:04]} dxe5 {[%emt 0:00:41]} 14. e4 {[%emt 0:02:32]} Bh7 {[%emt 0:02:18]} 15. h4 {[%emt 0:00:56]} gxh4 {[%emt 0:05:45]} 16. Rxh4 {[%emt 0:08:06]} Ne8 {[%emt 0:07:51]} 17. g4 {[%emt 0:09:47]} Nd6 {[%emt 0:10:25]} 18. Bd3 {[%emt 0:02:34]} e6 {[%emt 0:06:03]} 19. Rh5 {[%emt 0:06:27]} Bg6 {[%emt 0:04:00]} 20. Rh2 {[%emt 0:01:54]} Qg5 {[%emt 0:04:29]} 21. Qe2 {[%emt 0:03:24]} f5 {[%emt 0:07:31]} 22. dxe6 {[%emt 0:05:11]} fxg4 {[%emt 0:02:34]} 23. Nd5 {[%emt 0:03:07]} Rae8 {[%emt 0:02:48]} 24. e7 {[%emt 0:03:15]} Rf7 {[%emt 0:01:02]} 25. O-O-O {[%emt 0:04:03]} Bf6 {[%emt 0:01:24]} 26. Rg1 {[%emt 0:04:25]} h5 {[%emt 0:00:38]} 27. Kc2 {[%emt 0:05:15]} Bxe7 {[%emt 0:00:39]} 28. Rgh1 {[%emt 0:07:44]} Ref8 {[%emt 0:01:32]} 29. Ne3 {[%emt 0:01:41]} Kg7 {[%emt 0:01:19]} 30. Nf5+ {[%emt 0:01:36]} Kg8 {[%emt 0:01:36]} 31. Nh4 {[%emt 0:01:17]} Rh7 {[%emt 0:02:14]} 32. Nf1 {[%emt 0:01:01]} Qf4 {[%emt 0:01:15]} 33. Nxg6 {[%emt 0:00:30]} Qh6 34. Nh4 1-0

[Event "FRA-ch Open A-D 2018"]
[Site "Nimes"]
[Date "2018.08.25"]
[Round "8"]
[White "Rasolo, Loick"]
[Black "Alashtar, Aasef"]
[Result "0-1"]
[ECO "D45"]
[WhiteElo "1723"]
[BlackElo "1724"]
[Annotator "NA RC"]
[PlyCount "70"]
[EventDate "2018.08.18"]
[EventType "tourn"]
[EventCountry "FRA"]
[SourceTitle "playchess.com"]
[Source "ChessBase"]
[SourceQuality "1"]
[TimeControl "40/5400+30:1800+30"]

1. d4 {[%emt 0:00:00]} Nf6 {[%emt 0:00:00]} 2. c4 {[%emt 0:00:00]} e6 {[%emt 0:01:14]} 3. Nf3 {[%emt 0:00:00]} d5 {[%emt 0:01:00]} 4. Nc3 {[%emt 0:00:19]} c6 {[%emt 0:01:36]} 5. e3 {[%emt 0:00:38]} Nbd7 {[%emt 0:01:41]} 6. Be2 {[%emt 0:00:41]} Bb4 {[%emt 0:09:55]} 7. Bd2 {[%emt 0:00:40]} O-O {[%emt 0:00:36]} 8. O-O {[%emt 0:00:07]} dxc4 {[%emt 0:18:18]} 9. Bxc4 {[%emt 0:00:12]} Bd6 {[%emt 0:13:38]} 10. Qc2 {[%emt 0:07:19]} e5 {[%emt 0:05:32]} 11. Rad1 {[%emt 0:11:39]} Qc7 {[%emt 0:07:23]} 12. h3 {[%emt 0:02:11]} exd4 {[%emt 0:03:13]} 13. Nxd4 {[%emt 0:01:06]} Ne5 {[%emt 0:00:55]} 14. Be2 {[%emt 0:01:01]} Re8 15. e4 {[%emt 0:12:08]} Ng6 {[%emt 0:02:47]} 16. Bg5 {[%emt 0:05:31]} Be5 {[%emt 0:03:25]} 17. Bxf6 {[%emt 0:18:46]} Bxf6 {[%emt 0:01:13]} 18. Nd5 {[%emt 0:00:49]} Qd8 {[%emt 0:00:01]} 19. Nxf6+ {[%emt 0:00:12]} Qxf6 {[%emt 0:00:02]} 20. Nf5 {[%emt 0:12:09]} Bxf5 {[%emt 0:02:43]} 21. exf5 {[%emt 0:02:41]} Nf4 {[%emt 0:02:05]} 22. Bf3 {[%emt 0:05:34]} g6 {[%emt 0:07:55]} 23. fxg6 {[%emt 0:15:18]} hxg6 {[%emt 0:00:08]} 24. Bg4 {[%emt 0:00:32]} Rad8 {[%emt 0:04:03]} 25. Rxd8 {[%emt 0:00:54]} Rxd8 {[%emt 0:00:02]} 26. g3 {[%emt 0:00:50]} Nd5 {[%emt 0:03:04]} 27. Qb3 {[%emt 0:00:56]} Nb6 {[%emt 0:04:18]} 28. Bf3 {[%emt 0:01:02]} Rd2 {[%emt 0:00:16]} 29. Rb1 {[%emt 0:00:41]} Qd4 {[%emt 0:00:21]} 30. Qe3 {[%emt 0:00:22]} Qxe3 {[%emt 0:00:35]} 31. fxe3 {[%emt 0:00:03]} Nc4 {[%emt 0:00:20]} 32. b3 {[%emt 0:01:05]} Nxe3 {[%emt 0:02:14]} 33. a4 {[%emt 0:00:33]} Nf5 {[%emt 0:00:12]} 34. g4 {[%emt 0:00:17]} Nd4 {[%emt 0:00:10]} 35. Be4 {[%emt 0:00:33]} Ne2+ {[%emt 0:01:01]} 0-1

[Event "FRA-ch Open A-D 2018"]
[Site "Nimes"]
[Date "2018.08.25"]
[Round "8"]
[White "Prudent, Sylvio"]
[Black "Lamarque, Damien"]
[Result "1-0"]
[ECO "A06"]
[WhiteElo "1709"]
[BlackElo "1720"]
[Annotator "NA RC"]
[PlyCount "129"]
[EventDate "2018.08.18"]
[EventType "tourn"]
[EventCountry "FRA"]
[SourceTitle "playchess.com"]
[Source "ChessBase"]
[SourceQuality "1"]
[TimeControl "40/5400+30:1800+30"]

1. Nf3 {[%emt 0:00:00]} d5 {[%emt 0:00:00]} 2. b3 {[%emt 0:00:00]} c5 {[%emt 0:00:00]} 3. Bb2 {[%emt 0:00:00]} e6 {[%emt 0:00:21]} 4. e3 {[%emt 0:00:00]} Nf6 {[%emt 0:00:17]} 5. Be2 {[%emt 0:00:57]} Be7 {[%emt 0:04:21]} 6. O-O {[%emt 0:00:17]} O-O {[%emt 0:00:36]} 7. Ne5 {[%emt 0:00:39]} Nfd7 {[%emt 0:03:59]} 8. f4 {[%emt 0:01:50]} Nxe5 {[%emt 0:07:32]} 9. Bxe5 {[%emt 0:07:31]} Nc6 {[%emt 0:00:54]} 10. Bb2 {[%emt 0:00:11]} d4 {[%emt 0:10:43]} 11. e4 {[%emt 0:01:51]} b6 {[%emt 0:05:15]} 12. d3 {[%emt 0:01:38]} g5 {[%emt 0:05:25]} 13. Bh5 {[%emt 0:16:14]} f5 {[%emt 0:06:19]} 14. exf5 {[%emt 0:09:15]} exf5 {[%emt 0:08:39]} 15. fxg5 {[%emt 0:05:27]} Bxg5 {[%emt 0:00:59]} 16. Qf3 {[%emt 0:08:19]} Qd6 {[%emt 0:01:18]} 17. Na3 {[%emt 0:01:40]} Ba6 {[%emt 0:14:25]} 18. Rae1 {[%emt 0:06:58]} Ne7 {[%emt 0:15:09]} 19. Nc4 {[%emt 0:08:59]} Bxc4 {[%emt 0:01:20]} 20. dxc4 {[%emt 0:01:05]} Ng6 {[%emt 0:01:22]} 21. Bc1 {[%emt 0:01:38]} Bxc1 {[%emt 0:00:44]} 22. Rxc1 {[%emt 0:00:05]} Rae8 {[%emt 0:00:18]} 23. Rce1 {[%emt 0:02:12]} Rxe1 {[%emt 0:06:46]} 24. Rxe1 {[%emt 0:00:12]} Kg7 {[%emt 0:00:38]} 25. Qd3 {[%emt 0:08:37]} Rf7 {[%emt 0:01:06]} 26. Rf1 {[%emt 0:01:12]} Qe5 {[%emt 0:00:25]} 27. h3 {[%emt 0:08:19]} Qe4 {[%emt 0:01:11]} 28. Rf3 {[%emt 0:03:43]} Rf6 {[%emt 0:01:42]} 29. Qd2 {[%emt 0:04:21]} Qh4 {[%emt 0:00:37]} 30. Bxg6 {[%emt 0:00:40]} hxg6 {[%emt 0:00:05]} 31. Qf2 {[%emt 0:00:54]} Qe4 {[%emt 0:00:24]} 32. Rd3 {[%emt 0:00:39]} Re6 {[%emt 0:00:05]} 33. Qg3 {[%emt 0:00:28]} Qe2 {[%emt 0:00:34]} 34. Qc7+ {[%emt 0:00:19]} Re7 {[%emt 0:00:08]} 35. Qd6 {[%emt 0:00:18]} Qe1+ {[%emt 0:01:41]} 36. Kh2 {[%emt 0:00:16]} Qe5+ {[%emt 0:00:02]} 37. Qxe5+ {[%emt 0:00:15]} Rxe5 {[%emt 0:00:01]} 38. Rd2 {[%emt 0:00:30]} Re3 {[%emt 0:00:10]} 39. Kg1 {[%emt 0:00:21]} Kf6 {[%emt 0:00:12]} 40. Kf2 {[%emt 0:00:14]} f4 {[%emt 0:00:37]} 41. Rd3 {[%emt 0:30:28]} Ke5 {[%emt 0:30:25]} 42. a4 {[%emt 0:00:00]} Ke4 {[%emt 0:00:00]} 43. Rd2 {[%emt 0:00:00]} g5 {[%emt 0:00:00]} 44. Re2 {[%emt 0:00:00]} d3 {[%emt 0:00:00]} 45. cxd3+ {[%emt 0:00:00]} Kxd3 {[%emt 0:00:00]} 46. Rxe3+ {[%emt 0:00:00]} fxe3+ {[%emt 0:00:00]} 47. Ke1 {[%emt 0:00:00]} Kc3 {[%emt 0:00:00]} 48. g3 {[%emt 0:00:00]} Kxb3 {[%emt 0:00:00]} 49. h4 {[%emt 0:00:00]} gxh4 {[%emt 0:00:00]} 50. gxh4 {[%emt 0:00:00]} Kxa4 {[%emt 0:00:00]} 51. h5 {[%emt 0:00:00]} Kb4 {[%emt 0:00:00]} 52. h6 {[%emt 0:00:00]} Kxc4 {[%emt 0:00:00]} 53. h7 {[%emt 0:00:00]} a5 {[%emt 0:00:00]} 54. h8=Q {[%emt 0:00:00]} b5 {[%emt 0:00:00]} 55. Qh4+ {[%emt 0:00:00]} Kb3 {[%emt 0:00:00]} 56. Qg5 {[%emt 0:00:00]} Kb4 {[%emt 0:00:00]} 57. Qxe3 {[%emt 0:00:00]} a4 {[%emt 0:00:00]} 58. Kd2 {[%emt 0:00:00]} c4 {[%emt 0:03:28]} 59. Kc2 {[%emt 0:00:00]} a3 {[%emt 0:02:44]} 60. Qc3+ {[%emt 0:00:00]} Ka4 {[%emt 0:00:18]} 61. Kb1 {[%emt 0:00:00]} b4 {[%emt 0:00:49]} 62. Qxc4 {[%emt 0:00:00]} Ka5 {[%emt 0:00:16]} 63. Ka2 {[%emt 0:00:00]} Kb6 {[%emt 0:00:10]} 64. Qxb4+ {[%emt 0:00:00]} Kc6 {[%emt 0:00:08]} 65. Kxa3 {[%emt 0:00:00]} 1-0

[Event "FRA-ch Open A-D 2018"]
[Site "Nimes"]
[Date "2018.08.25"]
[Round "8"]
[White "Vette, Valerie"]
[Black "Piat, Jean-Pascal"]
[Result "0-1"]
[ECO "B01"]
[WhiteElo "1683"]
[BlackElo "1711"]
[Annotator "NA RC"]
[PlyCount "106"]
[EventDate "2018.08.18"]
[EventType "tourn"]
[EventCountry "FRA"]
[SourceTitle "playchess.com"]
[Source "ChessBase"]
[SourceQuality "1"]
[TimeControl "40/5400+30:1800+30"]

1. e4 {[%emt 0:00:00]} d5 {[%emt 0:08:08]} 2. exd5 {[%emt 0:00:00]} Qxd5 {[%emt 0:02:12]} 3. Nc3 Qd6 {[%emt 0:00:19]} 4. d4 {[%emt 0:01:06]} Nf6 {[%emt 0:01:09]} 5. Nf3 {[%emt 0:04:02]} a6 {[%emt 0:02:06]} 6. Bc4 {[%emt 0:16:47]} b5 {[%emt 0:12:50]} 7. Bb3 {[%emt 0:07:37]} Bb7 {[%emt 0:07:08]} 8. Qd3 {[%emt 0:11:48]} e6 {[%emt 0:12:24]} 9. a4 {[%emt 0:06:35]} b4 {[%emt 0:07:08]} 10. Ne2 {[%emt 0:00:57]} Be4 {[%emt 0:01:16]} 11. Qe3 {[%emt 0:06:49]} Be7 {[%emt 0:10:57]} 12. c4 {[%emt 0:08:40]} c5 {[%emt 0:05:49]} 13. g4 {[%emt 0:18:24]} cxd4 {[%emt 0:12:53]} 14. Nexd4 {[%emt 0:02:06]} Nc6 {[%emt 0:02:22]} 15. Rg1 {[%emt 0:02:37]} Nxd4 {[%emt 0:01:55]} 16. Nxd4 {[%emt 0:00:56]} Qxh2 {[%emt 0:00:38]} 17. f3 {[%emt 0:02:32]} Qh4+ {[%emt 0:01:34]} 18. Kf1 {[%emt 0:01:51]} Bb7 {[%emt 0:02:13]} 19. Qe5 {[%emt 0:01:18]} Qh3+ {[%emt 0:01:25]} 20. Ke2 {[%emt 0:01:25]} Rc8 {[%emt 0:01:28]} 21. Be3 {[%emt 0:00:46]} Bc5 {[%emt 0:00:36]} 22. Nxe6 {[%emt 0:00:42]} Qxf3+ {[%emt 0:00:40]} 23. Kd2 {[%emt 0:02:42]} Ne4+ {[%emt 0:01:28]} 24. Kc2 {[%emt 0:00:25]} Qe2+ {[%emt 0:00:41]} 25. Kb1 {[%emt 0:00:10]} Nd2+ {[%emt 0:01:54]} 26. Ka2 {[%emt 0:00:22]} Qxe3 {[%emt 0:00:57]} 27. Nxg7+ {[%emt 0:00:05]} Kf8 {[%emt 0:00:26]} 28. Ne6+ {[%emt 0:00:09]} Ke7 29. Qxe3 {[%emt 0:02:32]} Bxe3 {[%emt 0:01:00]} 30. Rge1 {[%emt 0:00:44]} Nxb3 {[%emt 0:00:08]} 31. Kxb3 {[%emt 0:00:09]} fxe6 {[%emt 0:01:13]} 32. Rxe3 {[%emt 0:00:06]} Rhg8 {[%emt 0:00:22]} 33. Rae1 {[%emt 0:00:38]} Rg6 {[%emt 0:00:15]} 34. Kxb4 {[%emt 0:00:18]} Rd8 {[%emt 0:00:32]} 35. Rh3 {[%emt 0:00:35]} h6 {[%emt 0:00:31]} 36. Rhe3 {[%emt 0:01:12]} Rd4 {[%emt 0:00:16]} 37. b3 {[%emt 0:00:35]} Rdxg4 {[%emt 0:00:47]} 38. Ka5 {[%emt 0:00:40]} h5 {[%emt 0:00:48]} 39. Kb6 {[%emt 0:00:20]} Bc8 {[%emt 0:00:11]} 40. Kc7 {[%emt 0:00:08]} Bd7 {[%emt 0:00:25]} 41. c5 {[%emt 0:02:11]} Rg8 {[%emt 0:02:16]} 42. Kb6 {[%emt 0:07:19]} Rb4+ {[%emt 0:01:09]} 43. Ka5 {[%emt 0:00:41]} Rgg4 {[%emt 0:09:52]} 44. c6 {[%emt 0:02:35]} Bc8 {[%emt 0:00:44]} 45. Rc1 {[%emt 0:02:15]} Rb8 {[%emt 0:02:47]} 46. Re5 {[%emt 0:02:55]} Kd6 {[%emt 0:00:40]} 47. Rxh5 {[%emt 0:02:01]} Rxb3 {[%emt 0:02:34]} 48. Rd1+ {[%emt 0:01:55]} Kxc6 {[%emt 0:04:55]} 49. Rc1+ {[%emt 0:02:53]} Kb7 {[%emt 0:00:30]} 50. Rhc5 {[%emt 0:01:01]} Rg8 {[%emt 0:02:37]} 51. Rc7+ {[%emt 0:02:02]} Kb8 {[%emt 0:00:18]} 52. R1c5 {[%emt 0:00:58]} Re8 53. Rb7+ Bxb7 0-1